fUST/lending_fUST_20251226
["ID","MTS","AMOUNT","RATE_DAILY","PERIOD"]
[399838456,1766725855577,-10000.01,0.000235,2]
[399838457,1766725873796,-5000.0,0.00023422,2]
[399838458,1766725873832,-0.01,0.000235,2]
[399838459,1766725874135,-10000.01,0.000235,2]
[399838460,1766725874321,-10000.01,0.000235,2]
[399838461,1766725874555,-10000.01,0.000235,2]
[399838462,1766725874680,-10000.01,0.000235,2]
[399838463,1766725874792,-10000.01,0.000235,2]
[399838464,1766725874902,-10000.01,0.000235,2]
[399838465,1766725875021,-10000.01,0.000235,2]
[399838466,1766725875205,-10000.01,0.000235,2]
[399838467,1766725882849,-10000.01,0.000235,2]
[399838468,1766725882988,-10000.01,0.000235,2]
[399838469,1766725883172,-10000.01,0.000235,2]
[399838470,1766725883372,-10000.01,0.000235,2]
[399838471,1766725883553,-10000.01,0.000235,2]
[399838472,1766725883740,-10000.01,0.000235,2]
[399838473,1766725883924,-10000.01,0.000235,2]
[399838474,1766725884022,-10000.01,0.000235,2]
[399838475,1766725884133,-10000.01,0.000235,2]
[399838476,1766725902064,-5000.0,0.00023422,2]
[399838477,1766725902102,-0.01,0.000235,2]
[399838478,1766725902418,-10000.01,0.000235,2]
[399838479,1766725905046,-3297.9990634,0.00023339,2]
[399838480,1766725905084,-3404.0118732,0.000235,2]
[399838481,1766725908258,-157.89,9.411e-05,2]
[399838482,1766725908297,-180.44,9.964e-05,2]
[399838483,1766725908356,-9323.35,0.000235,2]
[399838484,1766725911496,-203.0,0.00010518,2]
[399838485,1766725926886,-5000.0,0.00010961,2]
[399838486,1766725926922,-0.01,0.00011072,2]
[399838487,1766725933283,-225.54,0.00011072,2]
[399838488,1766725933314,-4548.93,0.00023422,10]
[399838489,1766725933357,-451.07,0.00023422,10]
[399838490,1766725939673,-10000.01,0.000235,2]
[399838492,1766726092848,5000.0,0.00021329,2]
[399838493,1766726093018,5000.0,0.00019178,2]
[399838494,1766726159931,416.0,0.00020365,2]
[399838495,1766726196203,633.0,0.00020365,2]
[399838496,1766726312944,5000.0,0.00021951,2]
[399838497,1766726328768,3000.0,0.00021951,2]
[399838498,1766726352611,1367.01,0.00021951,2]
[399838499,1766726352634,2632.99,0.00021951,2]
[399838500,1766726360812,5000.0,0.00021951,2]
[399838501,1766726384390,2367.02,0.00021951,2]
[399838502,1766726384415,2632.98,0.00021951,2]
[399838503,1766726417704,151.51515152,0.00021907,2]
[399838504,1766726449901,416.0,0.00020365,2]
[399838505,1766726455276,1808.2093343,0.00021329,2]
[399838506,1766726535721,3263.0,0.00021951,2]
[399838507,1766726539861,1041.66666667,0.00021892,2]
[399838508,1766726610476,686.63884751,0.00021951,2]
[399838509,1766726610502,4313.36115249,0.00021951,2]
[399838510,1766726626965,654.566479,0.00013699,2]
[399838511,1766726627327,654.566479,0.00020187,2]
[399838512,1766726633976,4377.51588951,0.00021951,2]
[399838513,1766726634002,622.48411049,0.00021951,2]
[399838514,1766726655626,151.0,0.0002,2]
[399838515,1766726657516,5000.0,0.00021951,2]
[399838516,1766726681239,4849.01,0.00021951,2]
[399838517,1766726681264,150.99,0.00021951,2]
[399838518,1766726690183,151.0,0.00021,2]
[399838519,1766726704240,151.0,0.000219,2]
[399838520,1766726704729,5000.0,0.00021951,2]
[399838521,1766726715795,151.0,0.000219,2]
[399838522,1766726725834,249.92348,0.0002,2]
[399838523,1766726728052,4146.09652,0.00021951,2]
[399838524,1766726728078,853.90348,0.00021951,2]
[399838525,1766726733766,151.0,0.000219,2]
[399838526,1766726743286,151.0,0.000219,2]
[399838527,1766726751039,416.0,0.00020365,2]
[399838528,1766726751097,5000.0,0.00021951,2]
[399838529,1766726753204,151.0,0.000219,5]
[399838530,1766726774737,3277.10652,0.00021951,2]
[399838531,1766726774762,1722.89348,0.00021951,2]
[399838532,1766726789140,151.0,0.0002195,2]
[399838533,1766726800060,5000.0,0.00021951,2]
[399838534,1766726823205,3126.11652,0.00021951,2]
[399838535,1766726823231,1873.88348,0.00021951,2]
[399838537,1766726843430,370.67492724,0.0002175,2]
[399838538,1766726847178,5000.0,0.00021951,2]
[399838540,1766726870253,2755.45159276,0.00021951,2]
[399838541,1766726872899,-2244.54840724,0.00021951,2]
[399838544,1766726893199,5000.0,0.00021951,2]
[399838546,1766726910523,510.91318552,0.00018,2]
[399838547,1766726910547,10000.01,0.00018,2]
[399838548,1766726910573,10000.01,0.00018,2]
[399838549,1766726910596,10000.01,0.00018,2]
[399838550,1766726910621,10000.01,0.00018,2]
[399838551,1766726910650,10000.01,0.00018,2]
[399838552,1766726910675,10000.01,0.00018,2]
[399838553,1766726910699,10000.01,0.00018,2]
[399838554,1766726910722,10000.01,0.00018,2]
[399838555,1766726910744,10000.01,0.00018,2]
[399838556,1766726916839,-5000.0,0.0001782,10]
[399838557,1766726919063,-875.5,0.0001,2]
[399838558,1766726919112,-1699.63270399,0.00018,2]
[399838559,1766726919455,-10000.01,0.00018,2]
[399838560,1766726919621,-10000.01,0.00018,2]
[399838561,1766726919795,-10000.01,0.00018,2]
[399838562,1766726919953,-10000.01,0.00018,2]
[399838563,1766726920173,-3094.42792339,0.00018,2]
[399838564,1766726920211,-3811.15415322,0.00018,2]
[399838565,1766726920349,-10000.01,0.00018,2]
[399838566,1766726920459,-10000.01,0.00018,2]
[399838567,1766726920591,-10000.01,0.00018,2]
[399838568,1766726920729,-1985.01912789,0.00018,2]
[399838569,1766726920753,-6029.97174422,0.00018,2]
[399838571,1766726941049,5000.0,0.0002195,2]
[399838573,1766726964269,5000.0,0.0002195,2]
[399838574,1766726987383,0.01,0.0002195,2]
[399838575,1766726987408,4999.99,0.0002195,2]
[399838576,1766727010701,5000.0,0.0002195,2]
[399838603,1766727032336,-162.21316812,0.00022,2]
[399838604,1766727032347,-95.09349358,0.00022004,120]
[399838605,1766727032392,-79.90650642,0.00022004,120]
[399838606,1766727032401,-458.23756058,0.000222,2]
[399838607,1766727032417,-829.31095464,0.000222,2]
[399838608,1766727034888,0.02,0.0002195,2]
[399838609,1766727034915,4999.98,0.0002195,2]
[399838623,1766727038606,-2034.6234051,0.000222,2]
[399838917,1766727043677,-1677.82807968,0.000222,2]
[399838918,1766727043688,-177.0,0.00022442,120]
[399838919,1766727043698,-5000.0,0.0002245,2]
[399838920,1766727043710,-300.0,0.00022466,2]
[399838921,1766727043720,-2011.83971345,0.00022509,2]
[399838922,1766727043731,-168.0,0.00022539,120]
[399838923,1766727043740,-167.0,0.00022629,120]
[399838924,1766727043751,-540.09367726,0.00022875,2]
[399838946,1766727123077,2161.0,0.00021021,2]
[399838947,1766727123457,172.41,8.923e-05,2]
[399838948,1766727123487,215.51,9.56e-05,2]
[399838949,1766727123516,258.61,0.00010198,2]
[399838950,1766727123546,301.71,0.00010835,2]
[399838951,1766727123673,344.81,0.00011472,2]
[399838952,1766727123707,387.91,0.0001211,2]
[399838953,1766727123740,431.02,0.00012747,2]
[399838954,1766727124711,-424.0,0.00021021,2]
[399838956,1766727130844,500.0,0.00013273,2]
[399838957,1766727131986,500.0,0.00013273,2]
[399838958,1766727134115,645.89839116,0.00013273,2]
[399838959,1766727134191,500.0,0.00013273,2]
[399838960,1766727134488,306.37579863,0.00013273,2]
[399838961,1766727134848,500.0,0.00013273,2]
[399838962,1766727135009,386.06893365,0.00013273,2]
[399838964,1766727153089,406.55096333,0.00021705,2]
[399838965,1766727183639,631.82622997,0.00013273,2]
[399838966,1766727183863,500.0,0.00013273,2]
[399838967,1766727183960,500.0,0.00013273,2]
[399838968,1766727187511,500.0,0.00013273,2]
[399838969,1766727189695,161.48599178,0.00021507,30]
[399838970,1766727189834,161.48599178,0.00021671,30]
[399838971,1766727189979,161.48599178,0.00021836,30]
[399838972,1766727193673,500.64750474,0.00013273,2]
[399838973,1766727196484,493.21463279,0.00013273,2]
[399838974,1766727196825,500.0,0.00013273,2]
[399838975,1766727197536,500.0,0.00013273,2]
[399838976,1766727200091,301.70852843,0.00013673,2]
[399838977,1766727202567,500.0,0.00013273,2]
[399838978,1766727203013,500.0,0.00013273,2]
[399838979,1766727203095,500.0,0.00013273,2]
[399838980,1766727203123,291.90965444,0.00013273,2]
[399838981,1766727203310,500.0,0.00013273,2]
[399838982,1766727203829,519.44710243,0.00013273,2]
[399838983,1766727204076,500.0,0.00013273,2]
[399838984,1766727204155,500.0,0.00013273,2]
[399838985,1766727204542,459.09456368,0.00013273,2]
[399838986,1766727204835,500.0,0.00013273,2]
[399838987,1766727217261,3000.0,0.00021,2]
[399838988,1766727238906,2229.55867945,0.00020601,2]
[399838989,1766727238930,823.48094425,0.00020601,2]
[399838990,1766727243817,500.0,0.00013273,2]
[399838991,1766727247095,500.0,0.00013273,2]
[399838992,1766727247123,500.0,0.00013273,2]
[399838993,1766727247232,500.0,0.00013273,2]
[399838994,1766727247322,500.0,0.00013273,2]
[399838996,1766727260768,5000.0,0.0002195,2]
[399838997,1766727268857,154.88,0.0001,2]
[399838998,1766727271460,154.88,0.000102,2]
[399838999,1766727273678,154.88,0.000104,2]
[399839000,1766727280103,1000.0,0.000184,2]
[399839001,1766727280312,211.88905575,0.000184,2]
[399839002,1766727280335,788.11094425,0.000184,2]
[399839003,1766727280501,1000.0,0.000184,2]
[399839004,1766727280827,1000.0,0.000184,2]
[399839005,1766727281237,1000.0,0.000184,2]
[399839006,1766727281408,1000.0,0.000184,2]
[399839007,1766727281571,1000.0,0.000185,2]
[399839008,1766727281808,1000.0,0.000184,2]
[399839009,1766727281999,1000.0,0.000184,2]
[399839010,1766727282185,1000.0,0.000184,2]
[399839011,1766727282389,516.759536,0.000184,2]
[399839012,1766727283877,695.13951975,0.0002195,2]
[399839013,1766727283903,4304.86048025,0.0002195,2]
[399839014,1766727303480,500.0,0.00013273,2]
[399839015,1766727303849,396.23489097,0.00013273,2]
[399839016,1766727303878,500.0,0.00013273,2]
[399839017,1766727303907,500.0,0.00013273,2]
[399839018,1766727304050,500.0,0.00013273,2]
[399839019,1766727306901,3298.91462878,0.0002195,2]
[399839020,1766727306927,1701.08537122,0.0002195,2]
[399839021,1766727307678,500.0,0.00013273,2]
[399839022,1766727307791,500.0,0.00013273,2]
[399839023,1766727307925,464.95053809,0.00013273,2]
[399839024,1766727308020,502.69501089,0.00013273,2]
[399839025,1766727308834,500.0,0.00013273,2]
[399839026,1766727320447,173.0,0.00021212,120]
[399839027,1766727324727,5658.2790798,0.00020601,2]
[399839028,1766727324753,10000.01,0.00020601,2]
[399839029,1766727324778,10000.01,0.00020601,2]
[399839030,1766727324802,4907.2369886,0.00020601,2]
[399839031,1766727330172,5000.0,0.0002195,2]
[399839032,1766727341066,92.7730114,0.00021021,2]
[399839033,1766727341095,323.2269886,0.00021021,2]
[399839034,1766727353272,5000.0,0.0002195,2]
[399839037,1766727376765,4676.7830114,0.0002195,2]
[399839038,1766727376791,323.2169886,0.0002195,2]
[399839039,1766727390712,9676.7930114,0.000218,2]
[399839040,1766727390735,10000.01,0.000218,2]
[399839041,1766727390759,10000.01,0.000218,2]
[399839042,1766727390785,10000.01,0.000218,2]
[399839043,1766727390807,10000.01,0.000218,2]
[399839044,1766727390829,10000.01,0.000218,2]
[399839045,1766727390851,10000.01,0.000218,2]
[399839046,1766727390873,10000.01,0.000218,2]
[399839047,1766727390895,10000.01,0.000218,2]
[399839048,1766727390918,10000.01,0.000218,2]
[399839049,1766727398826,-2119.31566929,0.0002179,10]
[399839050,1766727399012,-10000.01,0.0002179,10]
[399839051,1766727399204,-10000.01,0.0002179,10]
[399839052,1766727399413,-10000.01,0.0002179,10]
[399839053,1766727399539,-10000.01,0.0002179,10]
[399839054,1766727399654,-1665.45433071,0.0002179,10]
[399839055,1766727399698,-6669.10133858,0.000218,2]
[399839056,1766727400434,-10000.01,0.000218,2]
[399839057,1766727400498,-10000.01,0.000218,2]
[399839058,1766727401470,-5000.0,0.00021572,10]
[399839059,1766727401732,-0.01,0.000218,2]
[399839060,1766727401831,-10000.01,0.000218,2]
[399839061,1766727401894,-10000.01,0.000218,2]
[399839062,1766727402103,-10000.01,0.000218,2]
[399839063,1766727402291,-10000.01,0.000218,2]
[399839064,1766727402458,-10000.01,0.000218,2]
[399839065,1766727402593,-10000.01,0.000218,2]
[399839066,1766727402733,-10000.01,0.000218,2]
[399839067,1766727402860,-10000.01,0.000218,2]
[399839068,1766727402972,-10000.01,0.000218,2]
[399839069,1766727404775,-10000.01,0.000218,2]
[399839070,1766727405069,-10000.01,0.000218,2]
[399839071,1766727405203,-10000.01,0.000218,2]
[399839072,1766727405370,-10000.01,0.000218,2]
[399839073,1766727405535,-10000.01,0.000218,2]
[399839074,1766727405654,-10000.01,0.000218,2]
[399839075,1766727405818,-10000.01,0.000218,2]
[399839076,1766727405924,-10000.01,0.0002179,10]
[399839077,1766727406020,-10000.01,0.0002179,10]
[399839078,1766727406168,-10000.01,0.0002179,10]
[399839079,1766727423744,500.0,0.00013273,2]
[399839080,1766727423818,500.0,0.00013273,2]
[399839081,1766727424061,500.0,0.00013273,2]
[399839082,1766727424411,5000.0,0.0002178,2]
[399839084,1766727437465,1410.92416982,0.0002169,2]
[399839085,1766727437729,2089.08583018,0.0002178,10]
[399839086,1766727483648,500.0,0.00013273,2]
[399839087,1766727484038,500.0,0.00013273,2]
[399839088,1766727484067,500.0,0.00013699,2]
[399839091,1766727543420,500.0,0.00013273,2]
[399839093,1766727592056,2000.0,0.0002146,2]
[399839095,1766727854119,5000.0,0.00013263,2]
[399839127,1766728231554,-614.35401849,0.00013138,2]
[399839157,1766728237737,-4385.64598151,0.00013138,2]
[399839158,1766728237749,-300.0,0.0001327,2]
[399839159,1766728237760,-300.0,0.0001327,2]
[399839161,1766728237987,-300.0,0.0001327,2]
[399839162,1766728238013,-300.0,0.0001327,2]
[399839163,1766728238023,-1200.0,0.0001327,2]
[399839164,1766728238034,-1200.0,0.00013271,2]
[399839165,1766728238045,-300.0,0.00013272,2]
[399839166,1766728238055,-500.0,0.00013273,2]
[399839167,1766728238065,-500.0,0.00013273,2]
[399839168,1766728238075,-500.0,0.00013273,2]
[399839169,1766728238084,-500.0,0.00013273,2]
[399839170,1766728238094,-449.1665459,0.00013273,2]
[399839171,1766728238104,-500.0,0.00013273,2]
[399839172,1766728238114,-500.0,0.00013273,2]
[399839173,1766728238124,-500.33476409,0.00013273,2]
[399839174,1766728238134,-500.0,0.00013273,2]
[399839175,1766728238144,-500.0,0.00013273,2]
[399839176,1766728238154,-300.0,0.00013537,2]
[399839177,1766728238164,-300.0,0.00013537,2]
[399839178,1766728238174,-300.0,0.00013537,2]
[399839179,1766728238184,-300.0,0.00013537,2]
[399839180,1766728238194,-300.0,0.00013537,2]
[399839181,1766728238203,-300.0,0.00013537,2]
[399839182,1766728238213,-300.0,0.00013537,2]
[399839183,1766728238223,-300.0,0.00013537,2]
[399839184,1766728238233,-300.0,0.00013537,2]
[399839185,1766728238243,-300.0,0.00013537,2]
[399839186,1766728238253,-300.0,0.00013537,2]
[399839187,1766728238263,-300.0,0.00013537,2]
[399839188,1766728238274,-300.0,0.00013537,2]
[399839189,1766728238284,-300.0,0.00013537,2]
[399839190,1766728238294,-300.0,0.00013537,2]
[399839191,1766728238305,-420.0,0.00014549,2]
[399839192,1766728238315,-420.0,0.00014549,2]
[399839193,1766728238325,-406.0,0.00014549,2]
[399839194,1766728238335,-1680.0,0.0001455,2]
[399839195,1766728238345,-1680.0,0.00014597,2]
[399839196,1766728238355,-500.0,0.00014597,2]
[399839197,1766728238365,-177.0,0.00015204,2]
[399839198,1766728238375,-182.0,0.00015951,2]
[399839199,1766728238384,-587.0,0.00015951,2]
[399839200,1766728238395,-464.0,0.00015952,2]
[399839201,1766728238404,-2635.33762665,0.00015989,2]
[399839202,1766728238415,-204.0,0.00017204,2]
[399839203,1766728238425,-270.58008654,0.0001736,2]
[399839204,1766728238435,-500.0,0.00017386,2]
[399839205,1766728238445,-500.0,0.00017386,2]
[399839206,1766728238454,-500.0,0.00017386,2]
[399839207,1766728238464,-500.0,0.00017386,2]
[399839208,1766728238474,-500.0,0.00017386,2]
[399839209,1766728238484,-502.8811236,0.00017386,2]
[399839210,1766728238494,-500.0,0.00017386,2]
[399839211,1766728238504,-500.0,0.00017386,2]
[399839212,1766728238514,-500.0,0.00017386,2]
[399839213,1766728238524,-409.71912456,0.00017386,2]
[399839214,1766728238533,-500.0,0.00017386,2]
[399839215,1766728238544,-500.0,0.00017386,2]
[399839216,1766728238554,-500.0,0.00017386,2]
[399839217,1766728238564,-500.0,0.00017386,2]
[399839218,1766728238574,-200.59623109,0.00017386,2]
[399839219,1766728238583,-10046.3898032,0.00017387,2]
[399839220,1766728238593,-500.0,0.00017388,2]
[399839221,1766728238602,-549.54155161,0.00017388,2]
[399839222,1766728238613,-500.0,0.00017388,2]
[399839223,1766728238623,-500.0,0.00017388,2]
[399839224,1766728238633,-500.0,0.00017388,2]
[399839225,1766728238643,-400.71532914,0.00017388,2]
[399839226,1766728238654,-500.0,0.00017388,2]
[399839227,1766728238664,-500.0,0.00017388,2]
[399839228,1766728238675,-500.0,0.00017388,2]
[399839229,1766728238685,-500.0,0.00017388,2]
[399839230,1766728238695,-500.0,0.00017388,2]
[399839231,1766728238705,-500.0,0.00017388,2]
[399839232,1766728238716,-444.2015643,0.00017388,2]
[399839233,1766728238726,-500.0,0.00017388,2]
[399839234,1766728238736,-310434.88798504,0.00017389,2]
[399839235,1766728238809,-1181.34538107,0.00017389,2]
[399839236,1766728238821,-504.32018305,0.00017389,2]
[399839522,1766728789507,1080.0,0.000136,60]
[399839523,1766728816204,550.0,0.00012,30]
[399839524,1766728839793,535.01,8.58e-05,2]
[399839527,1766728976582,1000.0,0.00012,30]
[399839613,1766729438030,-2917.98635367,0.00013698,2]
[399839947,1766729450350,-2082.01364633,0.00013698,2]
[399839948,1766729465387,-5000.0,0.00015246,2]
[399839949,1766729480294,0.01,0.00015246,2]
[399839950,1766729480323,4999.99,0.00015246,2]
[399839951,1766729480615,-1122.94,0.000154,2]
[399839952,1766729480650,-999.98,0.000154,2]
[399839953,1766729496301,-300.0,0.00015706,2]
[399839954,1766729496339,-300.0,0.00015707,2]
[399839955,1766729496380,-300.0,0.00015707,2]
[399839956,1766729496416,-300.0,0.00015707,2]
[399839957,1766729496451,-300.0,0.00015707,2]
[399839958,1766729496484,-300.0,0.00015707,2]
[399839959,1766729496518,-300.0,0.00015707,2]
[399839960,1766729496552,-300.0,0.00015707,2]
[399839961,1766729496587,-300.0,0.00015707,2]
[399839962,1766729496624,-300.0,0.00015707,2]
[399839963,1766729496661,-300.0,0.00015707,2]
[399839964,1766729496695,-300.0,0.00015707,2]
[399839965,1766729496727,-300.0,0.00015707,2]
[399839966,1766729496760,-300.0,0.00015707,2]
[399839967,1766729496793,-300.0,0.00015707,2]
[399839968,1766729496824,-300.0,0.00015707,2]
[399839969,1766729496856,-177.0,0.00016263,2]
[399839970,1766729497136,-2032.87041226,0.00017002,2]
[399839971,1766729497167,-420.0,0.00017177,2]
[399839972,1766729497198,-165.76046166,0.00017188,2]
[399839973,1766729497230,-841.77453675,0.00017188,2]
[399839974,1766729497406,-3079.19917866,0.00017188,2]
[399839975,1766729497440,-500.0,0.00017216,2]
[399839976,1766729497475,-384.67908613,0.00017216,2]
[399839977,1766729497511,-500.0,0.00017216,2]
[399839978,1766729497546,-500.0,0.00017216,2]
[399839979,1766729497647,-480.5007304,0.00017216,2]
[399839980,1766729497682,-500.0,0.00017216,2]
[399839981,1766729497715,-460.94109501,0.00017216,2]
[399839982,1766729497749,-500.0,0.00017216,2]
[399839983,1766729498235,-500.0,0.00017216,2]
[399839984,1766729498285,-500.0,0.00017216,2]
[399839985,1766729498319,-369.78664599,0.00017216,2]
[399839986,1766729498352,-500.0,0.00017216,2]
[399839987,1766729498383,-423.95094857,0.00017216,2]
[399839988,1766729498415,-651.1338354,0.00017216,2]
[399839989,1766729498590,-513.86301713,0.00017216,2]
[399839990,1766729498621,-500.0,0.00017216,2]
[399839991,1766729498650,-508.80828309,0.00017216,2]
[399839992,1766729498679,-1367.4025397,0.00017216,2]
[399839993,1766729498706,-500.0,0.00017216,2]
[399839994,1766729498735,-500.0,0.00017216,2]
[399839995,1766729498765,-500.0,0.00017216,2]
[399839996,1766729498794,-188.54197105,0.00017216,2]
[399839997,1766729500034,-9732.6345164,0.00017217,2]
[399839998,1766729502143,-10000.01,0.00017217,2]
[399839999,1766729502405,-10000.01,0.00017217,2]
[399840000,1766729502586,-10000.01,0.00017217,2]
[399840001,1766729502764,-10000.01,0.00017217,2]
[399840002,1766729505226,-183.75143185,0.00016873,2]
[399840003,1766729505257,-218.585,0.00016873,2]
[399840004,1766729505288,-4195.3371363,0.00017045,2]
[399840005,1766729505349,-804.6628637,0.00017045,2]
[399840006,1766729505377,-10000.01,0.00017217,2]
[399840007,1766729505561,-10000.01,0.00017217,2]
[399840008,1766729505738,-10000.01,0.00017217,2]
[399840009,1766729508529,-10000.01,0.00017217,2]
[399840010,1766729511816,-10000.01,0.00017217,2]
[399840011,1766729511992,-10000.01,0.00017217,2]
[399840012,1766729512176,-10000.01,0.00017217,2]
[399840013,1766729512376,-10000.01,0.00017217,2]
[399840014,1766729515039,-1041.66666667,0.00017045,2]
[399840015,1766729515081,-7916.67666666,0.00017217,2]
[399840016,1766729518503,-10000.01,0.00017217,2]
[399840017,1766729519110,-10000.01,0.00017217,2]
[399840018,1766729519152,-10000.01,0.00017217,2]
[399840019,1766729519322,-10000.01,0.00017217,2]
[399840020,1766729519420,-10000.01,0.00017217,2]
[399840021,1766729519598,-10000.01,0.00017217,2]
[399840022,1766729519702,-10000.01,0.00017217,2]
[399840023,1766729519816,-10000.01,0.00017217,2]
[399840024,1766729519943,-10000.01,0.00017217,2]
[399840025,1766729527334,-5000.0,0.00017044,2]
[399840026,1766729527378,-0.01,0.00017207,3]
[399840027,1766729527517,-193.3,0.00017207,3]
[399840028,1766729527547,-300.0,0.00017216,2]
[399840029,1766729527598,-9013.41,0.00017217,2]
[399840030,1766729527713,-10000.01,0.00017217,2]
[399840031,1766729527932,-10000.01,0.00017217,2]
[399840032,1766729528285,-10000.01,0.00017217,2]
[399840033,1766729528421,-10000.01,0.00017217,2]
[399840034,1766729528838,-10000.01,0.00017217,2]
[399840035,1766729528960,-10000.01,0.00017217,2]
[399840036,1766729529082,-10000.01,0.00017217,2]
[399840037,1766729529302,-10000.01,0.00017217,2]
[399840038,1766729564488,191.74,6.373e-05,2]
[399840039,1766729564894,239.67,6.639e-05,2]
[399840040,1766729565345,287.61,6.905e-05,2]
[399840041,1766729565768,335.54,7.17e-05,2]
[399840042,1766729566185,383.48,7.436e-05,2]
[399840043,1766729566632,431.41,7.701e-05,2]
[399840044,1766729567029,479.35,7.967e-05,2]
[399840046,1766729703425,162.37,7.732e-05,2]
[399840053,1766730128340,5000.0,0.00013148,2]
[399840054,1766730266938,-5000.0,0.00012896,2]
[399840055,1766730272287,0.01,0.00012896,2]
[399840056,1766730272312,4999.99,0.00012896,2]
[399840057,1766730295019,5000.0,0.00013016,2]
[399840058,1766730318238,5000.0,0.00013016,2]
[399840059,1766730330965,0.01,0.00012896,2]
[399840060,1766730330989,4194.99,0.00012896,2]
[399840061,1766730335460,5000.0,0.00013016,2]
[399840062,1766730343303,805.02,0.00013016,2]
[399840063,1766730343330,4194.98,0.00013016,2]
[399840064,1766730367409,5000.0,0.00013145,2]
[399840065,1766730427069,-5000.0,0.00013023,2]
[399840066,1766730436828,0.01,0.00013023,2]
[399840067,1766730436854,4999.99,0.00013023,2]
[399840068,1766730460191,5000.0,0.00013146,2]
[399840069,1766730482883,5000.0,0.00013146,2]
[399840070,1766730506566,5000.0,0.00013149,2]
[399840072,1766730523489,-607.0,0.00013159,2]
[399840073,1766730529710,5000.0,0.00013159,2]
[399840074,1766730538043,-1200.0,0.0001329,2]
[399840075,1766730553357,-5000.0,0.00013562,2]
[399840076,1766730576651,0.01,0.00013699,2]
[399840077,1766730576678,4999.99,0.00013699,2]
[399840079,1766730584544,-589.109831,0.00013699,2]
[399840080,1766730584576,-300.0,0.00013899,2]
[399840081,1766730584616,-1200.0,0.00013899,2]
[399840082,1766730584649,-300.0,0.00013899,2]
[399840084,1766730599617,5000.0,0.00013899,2]
[399840085,1766730599709,-3400.01,0.000139,2]
[399840086,1766730599882,-3199.99,0.000139,2]
[399840087,1766730615111,-300.0,0.0001397,2]
[399840088,1766730615143,-982.0,0.0001397,2]
[399840089,1766730622620,5000.0,0.0001397,2]
[399840090,1766730626120,917.72,0.0001397,2]
[399840091,1766730630568,-280.92810651,0.00013971,2]
[399840092,1766730630795,-561.85621302,0.00013971,2]
[399840093,1766730630972,-1123.71242604,0.00013971,2]
[399840094,1766730631359,-2247.42485208,0.00013971,2]
[399840106,1766730631798,-4494.84970416,0.00013971,2]
[399840111,1766730631844,-1010.31059168,0.00013971,2]
[399840127,1766730632002,-257.62799877,0.00013971,2]
[399840129,1766730632016,-42.37200123,0.00013971,2]
[399840131,1766730632026,-300.0,0.00013971,2]
[399840135,1766730632049,-300.0,0.00013971,2]
[399840138,1766730632063,-300.0,0.00013971,2]
[399840140,1766730632078,-300.0,0.00013971,2]